fUST/lending_fUST_20251018
["ID","MTS","AMOUNT","RATE_DAILY","PERIOD"]
[391671106,1760724639286,-300.0,0.00028468,30]
[391671107,1760724639296,-300.0,0.00028468,30]
[391671108,1760724639305,-300.0,0.00028468,30]
[391671109,1760724639314,-300.0,0.00028468,30]
[391671110,1760724639323,-300.0,0.00028468,30]
[391671111,1760724639334,-300.0,0.00028468,30]
[391671112,1760724639343,-300.0,0.00028468,30]
[391671113,1760724639352,-300.0,0.00028468,30]
[391671114,1760724639362,-300.0,0.00028468,30]
[391671115,1760724639371,-300.0,0.00028468,30]
[391671116,1760724639381,-300.0,0.00028468,30]
[391671117,1760724639391,-318.49,0.00028493,10]
[391671118,1760724639403,-151.0,0.000285,16]
[391671119,1760724639412,-160.0,0.0002852,2]
[391671120,1760724639422,-1003.49908856,0.00028587,2]
[391671121,1760724639431,-151.0,0.000286,17]
[391671122,1760724639441,-151.0,0.000286,19]
[391671123,1760724639451,-151.0,0.000286,13]
[391671124,1760724639460,-74294.1240238,0.00028608,2]
[391671125,1760724639469,-74294.1240238,0.00028625,2]
[391671126,1760724639479,-600.36754488,0.00028625,2]
[391671127,1760724639488,-266.512698,0.00028635,30]
[391671128,1760724639498,-266.512698,0.00028635,30]
[391671129,1760724639507,-266.512698,0.00028635,30]
[391671130,1760724639516,-266.512698,0.00028635,30]
[391671131,1760724639525,-164.033396,0.00028635,30]
[391671132,1760724639534,-164.033396,0.00028635,30]
[391671133,1760724639544,-164.033396,0.00028635,30]
[391671134,1760724639553,-164.033396,0.00028635,30]
[391671135,1760724639564,-151.0,0.00028635,30]
[391671137,1760724639574,-151.0,0.00028635,30]
[391671138,1760724639583,-151.0,0.00028635,30]
[391671139,1760724639592,-151.0,0.00028635,30]
[391671140,1760724639602,-370000.0,0.00028635,2]
[391671141,1760724639611,-500.0,0.00028642,10]
[391671142,1760724639620,-166.0,0.00028645,2]
[391671143,1760724639629,-187.78006525,0.00028645,2]
[391671144,1760724639640,-304.15645967,0.00028673,5]
[391671145,1760724639649,-500.0,0.00028673,5]
[391671146,1760724639659,-500.0,0.00028673,5]
[391671147,1760724639668,-500.0,0.00028673,5]
[391671148,1760724639677,-500.0,0.00028673,5]
[391671149,1760724639687,-500.0,0.00028673,5]
[391671150,1760724639696,-500.0,0.00028673,5]
[391671151,1760724639705,-500.0,0.00028673,5]
[391671152,1760724639714,-288.13492177,0.00028673,5]
[391671153,1760724639724,-500.0,0.00028673,5]
[391671154,1760724639733,-500.0,0.00028673,5]
[391671155,1760724639743,-501.09043019,0.00028673,5]
[391671156,1760724639752,-502.00956572,0.00028673,5]
[391671157,1760724639761,-500.0,0.00028673,5]
[391671158,1760724639769,-470.61613362,0.00028673,5]
[391671159,1760724639779,-500.0,0.00028673,5]
[391671160,1760724639788,-502.39343219,0.00028673,5]
[391671161,1760724639797,-500.0,0.00028673,5]
[391671162,1760724639807,-500.0,0.00028673,5]
[391671163,1760724639816,-500.0,0.00028715,5]
[391671164,1760724639825,-1000.0,0.00028721,5]
[391671165,1760724639835,-503.09828403,0.00028721,5]
[391671166,1760724639845,-500.0,0.00028721,2]
[391671167,1760724639854,-500.0,0.00028721,5]
[391671168,1760724639863,-1000.0,0.00028721,5]
[391671169,1760724639873,-1000.0,0.00028721,5]
[391671170,1760724639882,-500.0,0.00028766,7]
[391671172,1760724639892,-500.0,0.00028767,30]
[391671174,1760724639902,-318.49,0.00028767,11]
[391671176,1760724639912,-1500.0,0.00028768,5]
[391671179,1760724639926,-1500.0,0.00028768,5]
[391671181,1760724639936,-151.0,0.000288,11]
[391671183,1760724639946,-285.0,0.00028805,2]
[391671185,1760724639955,-867.20860317,0.00028808,2]
[391671187,1760724639966,-151.0,0.000289,18]
[391671189,1760724639975,-500.0,0.00028916,10]
[391671191,1760724639984,-4250.81,0.00028935,4]
[391671193,1760724639995,-151.0,0.00029,17]
[391671195,1760724640004,-1000.01,0.00029,2]
[391671197,1760724640014,-387.50758309,0.00029008,5]
[391671199,1760724640024,-600.0,0.00029036,30]
[391671201,1760724640033,-318.49,0.00029041,12]
[391671203,1760724640043,-260.0,0.00029068,2]
[391671205,1760724640053,-1003.49908856,0.00029071,2]
[391671206,1760724640062,-150.0,0.00029125,7]
[391671208,1760724640072,-1000.01,0.00029174,2]
[391671210,1760724640082,-500.0,0.0002919,10]
[391671212,1760724640093,-166.0,0.00029193,2]
[391671214,1760724640102,-194.72792766,0.00029193,2]
[391671216,1760724640111,-151.0,0.000292,18]
[391671219,1760724640121,-436.24886388,0.00029221,5]
[391671221,1760724640131,-500.0,0.00029221,5]
[391671223,1760724640140,-500.0,0.00029221,5]
[391671225,1760724640150,-502.57658769,0.00029221,5]
[391671227,1760724640159,-1000.0,0.00029221,5]
[391671229,1760724640169,-1000.0,0.00029221,5]
[391671230,1760724640178,-1000.0,0.00029221,5]
[391671233,1760724640188,-1512.4240118,0.00029268,5]
[391671235,1760724640197,-1500.0,0.00029268,5]
[391671237,1760724640206,-151.0,0.000293,18]
[391671239,1760724640216,-21.27968745,0.000293,2]
[391671251,1760724640323,-2405.23031255,0.000293,2]
[391671253,1760724640332,-318.49,0.00029315,13]
[391671255,1760724640342,-2000.0,0.00029316,5]
[391671257,1760724640352,-2000.0,0.00029316,5]
[391671259,1760724640361,-307.5,0.00029405,2]
[391671261,1760724640370,-500.0,0.00029464,10]
[391671263,1760724640382,-2319.54,0.00029464,3]
[391671265,1760724640391,-1466.06,0.00029464,3]
[391671267,1760724640400,-733.04,0.00029464,3]
[391671269,1760724640409,-366.52,0.00029464,3]
[391671271,1760724640418,-221.98,0.0002948,3]
[391671273,1760724640429,-500.0,0.00029489,2]
[391671275,1760724640438,-402.69031254,0.000295,3]
[391671277,1760724640448,-151.0,0.000295,20]
[391671279,1760724640458,-1003.49908856,0.00029554,2]
[391671281,1760724640467,-318.49,0.00029589,14]
[391671283,1760724640477,-151.0,0.000296,18]
[391671285,1760724640486,-982.0,0.00029601,2]
[391671287,1760724640496,-2162.0,0.00029601,2]
[391671289,1760724640505,-631.0,0.00029601,2]
[391671291,1760724640514,-360.0,0.00029616,2]
[391671293,1760724640524,-5798.8412488,0.00029661,2]
[391671295,1760724640533,-1070.3120266,0.00029661,2]
[391671297,1760724640542,-405.0038606,0.00029662,2]
[391671299,1760724640552,-500.0,0.00029673,5]
[391671301,1760724640561,-500.0,0.00029673,5]
[391671303,1760724640570,-18059.84435465,0.000297,7]
[391671306,1760724640583,-822.42279838,0.000297,7]
[391671308,1760724640594,-471.54538709,0.000297,7]
[391671310,1760724640605,-861.97211392,0.000297,7]
[391671312,1760724640616,-1428.921969,0.000297,7]
[391671319,1760724640668,150.0,0.00023318,2]
[391671340,1760724640871,150.0,0.00024378,2]
[391671345,1760724640923,59.06530046,0.00025438,2]
[391671349,1760724640952,90.93469954,0.00025438,2]
[391671353,1760724640979,-151.0,0.00028635,30]
[391671355,1760724640990,-3640.82337696,0.000297,7]
[391671357,1760724641000,-402.69031254,0.000297,7]
[391671359,1760724641010,-151.0,0.000297,18]
[391671362,1760724641020,-7456.99890206,0.000297,2]
[391671364,1760724641032,-106410.0,0.000297,2]
[391671370,1760724641078,150.0,0.00026498,2]
[391671586,1760724643148,-169.67,0.00027558,2]
[391671589,1760724643160,-197.95,0.00028618,2]
[391671590,1760724643170,-226.22,0.00029678,2]
[391671592,1760724643180,-30025.63787674,0.000297,2]
[391671596,1760724643204,-58106.03284587,0.000297,2]
[391671598,1760724643218,-555.21288921,0.000297,2]
[391671736,1760724644791,-1945774.04350574,0.000297,2]
[391671738,1760724644800,-500.0,0.00029738,10]
[391671740,1760724644810,-166.0,0.00029741,2]
[391671742,1760724644819,-201.93286099,0.00029741,2]
[391671744,1760724644829,-4250.81,0.00029757,6]
[391671746,1760724644839,-500.0,0.00029768,5]
[391671748,1760724644849,-1500.0,0.00029768,5]
[391671750,1760724644858,-175.0,0.00029797,7]
[391671752,1760724644868,-166.0,0.00029797,7]
[391671754,1760724644878,-172.0,0.00029797,7]
[391671756,1760724644890,-175.5372348,0.00029797,7]
[391671758,1760724644900,-330.0,0.00029797,7]
[391671760,1760724644913,-336.93058499,0.00029797,7]
[391671762,1760724644923,-4201.0,0.00029797,2]
[391671764,1760724644932,-975.13212657,0.000298,2]
[391671766,1760724644942,-1500.0,0.00029816,5]
[391671768,1760724644952,-420.0,0.00029841,2]
[391671770,1760724644962,-420.0,0.00029841,2]
[391671773,1760724644972,-377.0,0.00029841,2]
[391671775,1760724644982,-1680.0,0.00029842,2]
[391671777,1760724644993,-318.49,0.00029863,15]
[391671778,1760724645003,-673.05844327,0.00029864,5]
[391671780,1760724645012,-2500.0,0.00029864,5]
[391671782,1760724645022,-11285.53925511,0.00029888,3]
[391671784,1760724645032,-151.0,0.000299,15]
[391671787,1760724645043,-2866.16798021,0.00029901,2]
[391671789,1760724645053,-967.0,0.00029926,2]
[391671790,1760724645062,-36328.0242835,0.00029959,2]
[391671792,1760724645072,-1680.0,0.00029971,2]
[391671794,1760724645082,-500.0,0.00029973,5]
[391671796,1760724645091,-616.77467093,0.00029973,4]
[391671798,1760724645101,-505.98908118,0.00029973,5]
[391671805,1760724645159,-500.0,0.00029973,2]
[391671807,1760724645169,-500.0,0.00029973,5]
[391671809,1760724645179,-500.0,0.00029973,5]
[391671811,1760724645188,-500.0,0.00029973,5]
[391671813,1760724645197,-500.0,0.00029973,5]
[391671815,1760724645207,-500.0,0.00029973,5]
[391671817,1760724645218,-500.0,0.00029973,5]
[391671819,1760724645227,-503.73491185,0.00029973,5]
[391671821,1760724645237,-16188.095058,0.0003,4]
[391671823,1760724645246,-232.2005,0.0003,2]
[391671825,1760724645255,-1000.0,0.0003,2]
[391671827,1760724645264,-2000.0,0.0003,2]
[391671829,1760724645273,-3826.07,0.0003,2]
[391671831,1760724645282,-330.0,0.00030005,2]
[391671833,1760724645292,-500.0,0.00030012,10]
[391671835,1760724645301,-1003.49908856,0.00030037,2]
[391671837,1760724645310,-500.95043733,0.00030048,11]
[391671839,1760724645322,-500.0,0.00030048,11]
[391671841,1760724645332,-967.0,0.00030057,7]
[391671843,1760724645341,-8669.30487677,0.000301,3]
[391671845,1760724645351,-200.12251496,0.00030126,2]
[391671847,1760724645359,-157.728,0.00030135,2]
[391671849,1760724645368,-500.0,0.00030136,2]
[391671851,1760724645378,-329.58535215,0.00030136,2]
[391671853,1760724645386,-500.0,0.00030136,2]
[391671855,1760724645396,-500.0,0.00030136,5]
[391671857,1760724645405,-512.39757621,0.00030136,5]
[391671859,1760724645414,-500.0,0.00030136,5]
[391671861,1760724645423,-500.0,0.00030136,5]
[391671862,1760724645432,-500.0,0.00030136,5]
[391671864,1760724645441,-500.0,0.00030136,5]
[391671866,1760724645450,-506.58673721,0.00030136,5]
[391671868,1760724645459,-160.0,0.00030136,30]
[391671870,1760724645468,-402.69031254,0.00030136,30]
[391671872,1760724645478,-500.0,0.00030136,5]
[391671874,1760724645487,-500.0,0.00030136,5]
[391671876,1760724645496,-1000.0,0.00030136,2]
[391671878,1760724645505,-500.0,0.00030136,5]
[391671880,1760724645515,-500.0,0.00030136,5]
[391671882,1760724645524,-337.71091664,0.00030136,5]
[391671884,1760724645533,-500.0,0.00030136,5]
[391671887,1760724645543,-1383.67,0.00030136,5]
[391671888,1760724645552,-500.0,0.00030136,5]
[391671890,1760724645561,-500.0,0.00030136,5]
[391671892,1760724645570,-622.67,0.00030136,5]
[391671894,1760724645579,-500.0,0.00030136,5]
[391671896,1760724645588,-1116.32,0.00030136,5]
[391671898,1760724645599,-500.0,0.00030136,5]
[391671900,1760724645608,-500.0,0.00030136,5]
[391671902,1760724645618,-500.0,0.00030136,5]
[391671904,1760724645627,-500.0,0.00030136,5]
[391671906,1760724645636,-500.0,0.00030136,5]
[391671908,1760724645645,-500.0,0.00030136,5]
[391671910,1760724645654,-500.0,0.00030136,5]
[391671912,1760724645664,-500.0,0.00030136,5]
[391671914,1760724645674,-500.0,0.00030136,5]
[391671916,1760724645683,-500.0,0.00030136,5]
[391671918,1760724645692,-500.0,0.00030136,5]
[391671920,1760724645702,-500.0,0.00030136,5]
[391671922,1760724645711,-500.0,0.00030136,5]
[391671924,1760724645720,-500.0,0.00030136,5]
[391671926,1760724645730,-500.0,0.00030136,5]
[391671928,1760724645740,-500.0,0.00030136,5]
[391671930,1760724645750,-500.0,0.00030136,5]
[391671932,1760724645759,-500.0,0.00030136,5]
[391671934,1760724645768,-500.0,0.00030136,5]
[391671936,1760724645778,-500.0,0.00030136,5]
[391671938,1760724645787,-500.0,0.00030136,5]
[391671940,1760724645797,-500.0,0.00030136,5]
[391671942,1760724645807,-500.0,0.00030136,5]
[391671944,1760724645816,-500.0,0.00030136,5]
[391671946,1760724645825,-500.0,0.00030136,5]
[391671948,1760724645835,-319.04,0.00030136,5]
[391671950,1760724645844,-597.1313174,0.00030136,5]
[391671952,1760724645853,-4876.64,0.00030136,5]
[391671954,1760724645862,-500.0,0.00030136,5]
[391671956,1760724645872,-500.0,0.00030136,5]
[391671958,1760724645881,-2483.49,0.00030136,5]
[391671960,1760724645890,-500.0,0.00030136,5]
[391671962,1760724645899,-500.0,0.00030136,5]
[391671964,1760724645910,-500.0,0.00030136,5]
[391671966,1760724645922,-500.0,0.00030136,5]
[391671968,1760724645931,-500.0,0.00030136,5]
[391671970,1760724645940,-500.0,0.00030136,5]
[391671972,1760724645949,-500.0,0.00030136,5]
[391671974,1760724645958,-500.0,0.00030136,5]
[391671976,1760724645968,-500.0,0.00030136,5]
[391671978,1760724645976,-500.0,0.00030136,5]
[391671980,1760724645988,-613.71855809,0.00030136,5]
[391671982,1760724645997,-500.0,0.00030136,5]
[391671984,1760724646007,-500.0,0.00030136,5]
[391671986,1760724646016,-500.0,0.00030136,5]
[391671988,1760724646025,-606.34,0.00030136,5]
[391671990,1760724646035,-500.0,0.00030136,5]
[391671992,1760724646044,-500.0,0.00030136,5]
[391671994,1760724646054,-500.0,0.00030136,5]
[391671995,1760724646064,-513.19213595,0.00030136,5]
[391671997,1760724646074,-624.44,0.00030136,5]
[391671999,1760724646084,-500.0,0.00030136,5]
[391672002,1760724646094,-500.0,0.00030136,5]
[391672003,1760724646103,-500.0,0.00030136,5]
[391672005,1760724646112,-500.0,0.00030136,5]
[391672007,1760724646123,-500.0,0.00030136,5]
[391672009,1760724646132,-1082.42,0.00030136,5]
[391672011,1760724646141,-1082.42,0.00030136,5]
[391672013,1760724646151,-1082.42,0.00030136,5]
[391672015,1760724646162,-1082.42,0.00030136,5]
[391672017,1760724646171,-1082.42,0.00030136,5]
[391672019,1760724646181,-1082.42,0.00030136,5]
[391672021,1760724646190,-1082.42,0.00030136,5]
[391672023,1760724646200,-1082.42,0.00030136,5]
[391672025,1760724646210,-1082.42,0.00030136,5]
[391672027,1760724646219,-1082.42,0.00030136,5]
[391672029,1760724646228,-1082.42,0.00030136,5]
[391672031,1760724646238,-1082.42,0.00030136,5]
[391672033,1760724646248,-1082.42,0.00030136,5]
[391672035,1760724646257,-1082.42,0.00030136,5]
[391672037,1760724646267,-1082.42,0.00030136,5]
[391672039,1760724646276,-1082.42,0.00030136,5]
[391672041,1760724646285,-1082.42,0.00030136,5]
[391672043,1760724646295,-1082.42,0.00030136,5]
[391672045,1760724646304,-1082.42,0.00030136,5]
[391672047,1760724646313,-1082.42,0.00030136,5]
[391672049,1760724646324,-1082.42,0.00030136,5]
[391672051,1760724646333,-1082.42,0.00030136,5]
[391672053,1760724646342,-1082.42,0.00030136,5]
[391672055,1760724646352,-1082.63421735,0.00030136,5]
[391672057,1760724646362,-500.0,0.00030136,5]
[391672059,1760724646371,-1826.15,0.00030136,2]
[391672061,1760724646380,-500.0,0.00030136,5]
[391672063,1760724646390,-500.0,0.00030136,5]
[391672064,1760724646399,-500.0,0.00030136,5]
[391672065,1760724646410,-785.68,0.00030136,5]
[391672066,1760724646419,-500.0,0.00030136,5]
[391672067,1760724646429,-500.0,0.00030136,5]
[391672068,1760724646439,-500.0,0.00030136,5]
[391672070,1760724646448,-500.0,0.00030136,5]
[391672072,1760724646458,-500.0,0.00030136,5]
[391672074,1760724646468,-542.92855219,0.00030136,5]
[391672076,1760724646478,-500.0,0.00030136,5]
[391672078,1760724646488,-500.0,0.00030136,5]
[391672080,1760724646498,-500.0,0.00030136,5]
[391672082,1760724646508,-500.0,0.00030136,5]
[391672084,1760724646517,-500.0,0.00030136,5]
[391672086,1760724646526,-895.98,0.00030136,5]
[391672088,1760724646536,-500.0,0.00030136,5]
[391672090,1760724646545,-1634.59,0.00030136,5]
[391672093,1760724646555,-1634.59,0.00030136,5]
[391672094,1760724646564,-1634.59,0.00030136,5]
[391672097,1760724646574,-1634.59,0.00030136,5]
[391672099,1760724646584,-1634.59,0.00030136,5]
[391672101,1760724646594,-1634.59,0.00030136,5]
[391672103,1760724646603,-1634.59,0.00030136,5]
[391672105,1760724646613,-1634.59,0.00030136,5]
[391672107,1760724646623,-1634.59,0.00030136,5]
[391672109,1760724646632,-1634.59,0.00030136,5]
[391672111,1760724646641,-1634.59,0.00030136,5]
[391672113,1760724646651,-1634.59,0.00030136,5]
[391672115,1760724646661,-1634.59,0.00030136,5]
[391672117,1760724646670,-1634.59,0.00030136,5]
[391672119,1760724646680,-1634.59,0.00030136,5]
[391672121,1760724646690,-1634.59,0.00030136,5]
[391672123,1760724646699,-1634.59,0.00030136,5]
[391672125,1760724646708,-1634.59,0.00030136,5]
[391672127,1760724646718,-1634.59,0.00030136,5]
[391672129,1760724646728,-1634.59,0.00030136,5]
[391672131,1760724646738,-4958.33,0.00030136,5]
[391672133,1760724646748,-1634.59,0.00030136,5]
[391672135,1760724646757,-1634.59,0.00030136,5]
[391672137,1760724646766,-1634.59,0.00030136,5]
[391672139,1760724646776,-1634.79133898,0.00030136,5]
[391672141,1760724646785,-500.0,0.00030136,5]
[391672143,1760724646795,-500.0,0.00030136,5]
[391672145,1760724646805,-500.0,0.00030136,5]
[391672147,1760724646815,-500.0,0.00030136,5]
[391672149,1760724646825,-500.0,0.00030136,2]
[391672151,1760724646835,-500.0,0.00030136,5]
[391672154,1760724646845,-500.0,0.00030136,5]
[391672156,1760724646854,-500.0,0.00030136,5]
[391672158,1760724646864,-5210.72,0.00030136,5]
[391672160,1760724646874,-500.0,0.00030136,5]
[391672162,1760724646883,-518.86,0.00030136,5]
[391672164,1760724646893,-805.93,0.00030136,5]
[391672166,1760724646902,-500.0,0.00030136,5]
[391672167,1760724646915,-1000.0,0.00030136,2]
[391672169,1760724646924,-500.0,0.00030136,5]
[391672171,1760724646933,-500.0,0.00030136,5]
[391672173,1760724646943,-500.0,0.00030136,5]
[391672175,1760724646952,-656.71,0.00030136,3]
[391672177,1760724646962,-529.54,0.00030136,5]
[391672179,1760724646972,-500.0,0.00030136,5]
[391672182,1760724646982,-678.35,0.00030136,5]
[391672183,1760724646993,-585.22,0.00030136,5]
[391672186,1760724647003,-585.22,0.00030136,5]
[391672188,1760724647012,-585.22,0.00030136,5]
[391672190,1760724647023,-502.05269416,0.00030136,5]
[391672192,1760724647032,-585.22,0.00030136,5]
[391672194,1760724647042,-585.22,0.00030136,5]
[391672196,1760724647051,-585.22,0.00030136,5]
[391672198,1760724647061,-585.22,0.00030136,5]
[391672200,1760724647070,-585.22,0.00030136,5]
[391672202,1760724647080,-585.22,0.00030136,5]
[391672204,1760724647089,-585.22,0.00030136,5]
[391672206,1760724647099,-585.22,0.00030136,5]
[391672208,1760724647108,-585.22,0.00030136,5]
[391672210,1760724647118,-585.22,0.00030136,5]
[391672212,1760724647128,-585.22,0.00030136,5]
[391672214,1760724647138,-585.22,0.00030136,5]
[391672216,1760724647148,-585.22,0.00030136,5]
[391672217,1760724647158,-585.22,0.00030136,5]
[391672219,1760724647167,-585.22,0.00030136,5]
[391672221,1760724647177,-585.22,0.00030136,5]
[391672223,1760724647186,-585.22,0.00030136,5]
[391672226,1760724647196,-585.22,0.00030136,5]
[391672228,1760724647206,-585.22,0.00030136,5]
[391672230,1760724647216,-585.22,0.00030136,5]
[391672232,1760724647227,-585.34789315,0.00030136,5]
[391672234,1760724647240,-500.0,0.00030136,5]
[391672236,1760724647250,-500.0,0.00030136,2]
[391672238,1760724647260,-500.0,0.00030136,2]
[391672240,1760724647270,-500.0,0.00030136,2]
[391672242,1760724647280,-516.72171874,0.00030136,2]
[391672244,1760724647291,-269.2,0.00030136,2]
[391672246,1760724647301,-545.0,0.00030136,5]
[391672248,1760724647311,-2386.99,0.00030136,5]
[391672250,1760724647322,-273.31186074,0.00030136,5]
[391672252,1760724647332,-500.0,0.00030136,5]
[391672254,1760724647342,-500.0,0.00030136,5]
[391672256,1760724647351,-500.0,0.00030136,5]
[391672258,1760724647361,-543.47648462,0.00030136,5]
[391672260,1760724647371,-500.0,0.00030136,5]
[391672262,1760724647381,-151.5008036,0.00030136,5]
[391672264,1760724647391,-500.0,0.00030136,5]
[391672267,1760724647401,-5093.68,0.00030136,5]
[391672268,1760724647414,-647.06,0.00030136,5]
[391672271,1760724647425,-500.0,0.00030136,5]
[391672273,1760724647435,-500.0,0.00030136,5]
[391672275,1760724647446,-266.512698,0.00030136,30]
[391672277,1760724647456,-500.0,0.00030136,5]
[391672279,1760724647466,-266.512698,0.00030136,30]
[391672281,1760724647476,-266.512698,0.00030136,30]
[391672283,1760724647486,-266.512698,0.00030136,30]
[391672285,1760724647496,-500.0,0.00030136,5]
[391672287,1760724647506,-169.64574593,0.00030136,5]
[391672289,1760724647516,-500.0,0.00030136,5]
[391672291,1760724647527,-500.0,0.00030136,5]
[391672293,1760724647537,-213.79316241,0.00030136,5]
[391672295,1760724647547,-500.0,0.00030136,5]
[391672297,1760724647557,-500.0,0.00030136,5]
[391672299,1760724647568,-532.27592678,0.00030136,5]
[391672301,1760724647578,-500.9763445,0.00030136,5]
[391672303,1760724647590,-500.0,0.00030136,5]
[391672305,1760724647600,-500.77759847,0.00030136,5]
[391672307,1760724647610,-501.03856721,0.00030136,5]
[391672309,1760724647620,-379.62854608,0.00030136,5]
[391672311,1760724647631,-500.0,0.00030136,5]
[391672313,1760724647640,-500.0,0.00030136,5]
[391672315,1760724647650,-500.0,0.00030136,5]
[391672317,1760724647660,-501.25144548,0.00030136,5]
[391672319,1760724647670,-500.0,0.00030136,5]
[391672322,1760724647680,-503.11624523,0.00030136,5]
[391672324,1760724647690,-9395.89,0.00030136,5]
[391672326,1760724647699,-500.0,0.00030136,5]
[391672328,1760724647708,-164.033396,0.00030136,30]
[391672330,1760724647718,-500.0,0.00030136,5]
[391672332,1760724647728,-500.0,0.00030136,5]
[391672334,1760724647737,-164.033396,0.00030136,30]
[391672336,1760724647747,-263.69901708,0.00030136,5]
[391672338,1760724647756,-164.033396,0.00030136,30]
[391672340,1760724647772,-164.033396,0.00030136,30]
[391672342,1760724647781,-500.0,0.00030136,2]
[391672344,1760724647791,-997.70865257,0.00030136,30]
[391672346,1760724647800,-500.0,0.00030136,5]
[391672348,1760724647810,-161.24715,0.00030136,30]
[391672350,1760724647819,-500.0,0.00030136,5]
[391672352,1760724647829,-510.65291596,0.00030136,5]
[391672355,1760724647838,-500.0,0.00030136,5]
[391672357,1760724647848,-500.0,0.00030136,5]
[391672359,1760724647857,-606.01828906,0.00030136,5]
[391672361,1760724647867,-500.0,0.00030136,5]
[391672363,1760724647876,-500.0,0.00030136,5]
[391672365,1760724647886,-500.0,0.00030136,5]
[391672367,1760724647895,-500.0,0.00030136,5]
[391672369,1760724647905,-151.0,0.00030136,30]
[391672371,1760724647920,-502.15143191,0.00030136,5]
[391672373,1760724647929,-500.0,0.00030136,5]
[391672375,1760724647939,-500.0,0.00030136,5]
[391672377,1760724647948,-500.0,0.00030136,5]
[391672379,1760724647959,-151.0,0.00030136,30]
[391672381,1760724647968,-151.0,0.00030136,30]
[391672383,1760724647978,-500.0,0.00030136,5]
[391672385,1760724647988,-500.0,0.00030136,5]
[391672387,1760724647997,-151.0,0.00030136,30]
[391672389,1760724648008,-549.74984679,0.00030136,5]
[391672391,1760724648017,-500.0,0.00030136,5]
[391672393,1760724648026,-351.053321,0.00030137,120]
[391672395,1760724648037,-318.49,0.00030137,16]
[391672397,1760724648047,-266.512698,0.00030137,30]
[391672399,1760724648057,-266.512698,0.00030137,30]
[391672401,1760724648067,-266.512698,0.00030137,30]
[391672403,1760724648077,-266.512698,0.00030137,30]
[391672405,1760724648086,-164.033396,0.00030137,30]
[391672407,1760724648096,-164.033396,0.00030137,30]
[391672409,1760724648106,-164.033396,0.00030137,30]
[391672411,1760724648115,-164.033396,0.00030137,30]
[391672414,1760724648125,-151.0,0.00030137,30]
[391672416,1760724648136,-500.0,0.00030137,2]
[391672418,1760724648146,-500.0,0.00030137,2]
[391672420,1760724648158,-500.0,0.00030137,2]
[391672422,1760724648168,-500.0,0.00030137,2]
[391672424,1760724648179,-500.0,0.00030137,2]
[391672426,1760724648192,-500.0,0.00030137,2]
[391672428,1760724648202,-500.0,0.00030137,2]
[391672430,1760724648212,-500.0,0.00030137,2]
[391672433,1760724648225,-500.0,0.00030137,2]
[391672435,1760724648236,-500.0,0.00030137,2]
[391672437,1760724648246,-500.0,0.00030137,2]
[391672439,1760724648256,-500.0,0.00030137,2]
[391672441,1760724648265,-500.0,0.00030137,2]
[391672443,1760724648275,-500.0,0.00030137,2]
[391672445,1760724648285,-500.0,0.00030137,2]
[391672447,1760724648295,-500.0,0.00030137,2]